[Event "Titled Tuesday Blitz March 08 Early 2022"]
[White "Vokhidov, Shamsiddin"]
[Black "Volkov, Maksim"]
[WhiteFideId "14204223"]
[BlackFideId "54123070"]
[WhiteElo "2611"]
[BlackElo "2081"]
[Result "1/2-1/2"]
[Round "09"]
[TimeControl "180+1"]
[Date "2022.03.08"]
[WhiteClock "0:01:29"]
[BlackClock "0:01:03"]

1. e4 {[%clk 0:03:00]}  c5 {[%clk 0:02:59]} 2. Nf3 {[%clk 0:03:00]}  d6 {[%clk 0:02:59]} 3. Bb5+ {[%clk 0:03:01]}  Nd7 {[%clk 0:02:59]} 4. a4 {[%clk 0:03:01]}  a6 {[%clk 0:02:59]} 5. Be2 {[%clk 0:03:01]}  Ngf6 {[%clk 0:02:56]} 6. Nc3 {[%clk 0:03:02]}  e6 {[%clk 0:02:49]} 7. a5 {[%clk 0:03:01]}  b6 {[%clk 0:02:44]} 8. axb6 {[%clk 0:03:00]}  Qxb6 {[%clk 0:02:45]} 9. O-O {[%clk 0:02:58]}  Bb7 {[%clk 0:02:45]} 10. d3 {[%clk 0:02:56]}  Be7 {[%clk 0:02:44]} 11. Nd2 {[%clk 0:02:57]}  O-O {[%clk 0:02:43]} 12. Nc4 {[%clk 0:02:57]}  Qc7 {[%clk 0:02:44]} 13. Bf4 {[%clk 0:02:56]}  Rfb8 {[%clk 0:02:26]} 14. Qd2 {[%clk 0:02:55]}  e5 {[%clk 0:02:23]} 15. Bg5 {[%clk 0:02:52]}  h6 {[%clk 0:02:21]} 16. Bxf6 {[%clk 0:02:48]}  Bxf6 {[%clk 0:02:21]} 17. Bg4 {[%clk 0:02:41]}  Nf8 {[%clk 0:02:18]} 18. f4 {[%clk 0:02:34]}  exf4 {[%clk 0:02:17]} 19. Qxf4 {[%clk 0:02:35]}  Ng6 {[%clk 0:02:12]} 20. Qxd6 {[%clk 0:02:32]}  Qxd6 {[%clk 0:02:03]} 21. Nxd6 {[%clk 0:02:33]}  Bc6 {[%clk 0:02:02]} 22. Nc4 {[%clk 0:02:26]}  Ne5 {[%clk 0:01:58]} 23. Nxe5 {[%clk 0:02:26]}  Bxe5 {[%clk 0:01:59]} 24. Ra2 {[%clk 0:02:26]}  Rb6 {[%clk 0:01:54]} 25. Nd1 {[%clk 0:02:25]}  Rab8 {[%clk 0:01:50]} 26. b3 {[%clk 0:02:25]}  Bd4+ {[%clk 0:01:48]} 27. Kh1 {[%clk 0:02:25]}  g6 {[%clk 0:01:45]} 28. Nb2 {[%clk 0:02:15]}  h5 {[%clk 0:01:44]} 29. Bf3 {[%clk 0:02:14]}  Bd7 {[%clk 0:01:41]} 30. Nc4 {[%clk 0:02:13]}  Rf6 {[%clk 0:01:40]} 31. e5 {[%clk 0:02:11]}  Rf5 {[%clk 0:01:31]} 32. Rxa6 {[%clk 0:02:06]}  Bb5 {[%clk 0:01:31]} 33. Rf6 {[%clk 0:01:58]}  Rxf6 {[%clk 0:01:25]} 34. exf6 {[%clk 0:01:59]}  Bxc4 {[%clk 0:01:21]} 35. dxc4 {[%clk 0:01:57]}  Bxf6 {[%clk 0:01:20]} 36. Bxh5 {[%clk 0:01:54]}  Bd4 {[%clk 0:01:15]} 37. Bf3 {[%clk 0:01:54]}  Rb6 {[%clk 0:01:15]} 38. g3 {[%clk 0:01:52]}  Kg7 {[%clk 0:01:15]} 39. Kg2 {[%clk 0:01:50]}  Ra6 {[%clk 0:01:15]} 40. h4 {[%clk 0:01:45]}  Ra2 {[%clk 0:01:13]} 41. Be2 {[%clk 0:01:45]}  Rxc2 {[%clk 0:01:12]} 42. Kf3 {[%clk 0:01:29]}  Rc3+ {[%clk 0:01:11]} 43. Kg4 {[%clk 0:01:28]}  Rxb3 {[%clk 0:01:09]} 44. Bf3 {[%clk 0:01:28]}  Rc3 {[%clk 0:01:06]} 45. Bd5 {[%clk 0:01:27]}  f5+ {[%clk 0:01:04]} 46. Kh3 {[%clk 0:01:26]}  Be5 {[%clk 0:01:04]} 47. Rf3 {[%clk 0:01:26]}  Rxf3 {[%clk 0:01:04]} 48. Bxf3 {[%clk 0:01:27]}  Kf6 {[%clk 0:01:04]} 49. g4 {[%clk 0:01:28]}  fxg4+ {[%clk 0:01:03]} 50. Kxg4 {[%clk 0:01:29]}  Bd4 {[%clk 0:01:04]} 51. h5 {[%clk 0:01:28]}  gxh5+ {[%clk 0:01:03]} 52. Kxh5 {[%clk 0:01:29]}  Ke5 {[%clk 0:01:03]} 1/2-1/2


[Site "https://www.chess.com"]

[Event "Titled Tuesday Blitz March 08 Early 2022"]
[White "Wagner, Dennis"]
[Black "Kushko, Dmitriy"]
[WhiteFideId "24650684"]
[BlackFideId "14162261"]
[WhiteElo "2355"]
[BlackElo "2225"]
[Result "1-0"]
[Round "09"]
[TimeControl "180+1"]
[Date "2022.03.09"]
[WhiteClock "0:01:24"]
[BlackClock "0:00:05"]

1. Nf3 {[%clk 0:03:00]}  Nf6 {[%clk 0:02:59]} 2. g3 {[%clk 0:02:59]}  g6 {[%clk 0:02:59]} 3. b3 {[%clk 0:02:57]}  Bg7 {[%clk 0:02:58]} 4. Bb2 {[%clk 0:02:57]}  d6 {[%clk 0:02:57]} 5. Bg2 {[%clk 0:02:58]}  e5 {[%clk 0:02:53]} 6. O-O {[%clk 0:02:56]}  O-O {[%clk 0:02:48]} 7. c4 {[%clk 0:02:57]}  Nc6 {[%clk 0:02:43]} 8. Nc3 {[%clk 0:02:56]}  Bf5 {[%clk 0:02:39]} 9. d3 {[%clk 0:02:44]}  Qd7 {[%clk 0:02:39]} 10. Nd5 {[%clk 0:02:43]}  Rac8 {[%clk 0:01:45]} 11. Re1 {[%clk 0:02:37]}  Nxd5 {[%clk 0:01:35]} 12. cxd5 {[%clk 0:02:37]}  Ne7 {[%clk 0:01:35]} 13. e4 {[%clk 0:02:31]}  Bg4 {[%clk 0:01:35]} 14. d4 {[%clk 0:02:23]}  c6 {[%clk 0:01:24]} 15. dxe5 {[%clk 0:02:19]}  cxd5 {[%clk 0:01:12]} 16. exd5 {[%clk 0:02:10]}  dxe5 {[%clk 0:01:03]} 17. Bxe5 {[%clk 0:02:09]}  Rfd8 {[%clk 0:00:25]} 18. Bxg7 {[%clk 0:02:06]}  Bxf3 {[%clk 0:00:19]} 19. Bxf3 {[%clk 0:01:49]}  Kxg7 {[%clk 0:00:19]} 20. Qd4+ {[%clk 0:01:45]}  Kg8 {[%clk 0:00:19]} 21. Rad1 {[%clk 0:01:41]}  Nf5 {[%clk 0:00:19]} 22. Qxa7 {[%clk 0:01:35]}  Nd6 {[%clk 0:00:18]} 23. Qd4 {[%clk 0:01:33]}  Re8 {[%clk 0:00:18]} 24. Kg2 {[%clk 0:01:33]}  b5 {[%clk 0:00:18]} 25. h4 {[%clk 0:01:32]}  h5 {[%clk 0:00:17]} 26. Qf6 {[%clk 0:01:31]}  Rxe1 {[%clk 0:00:15]} 27. Rxe1 {[%clk 0:01:32]}  Re8 {[%clk 0:00:16]} 28. Rxe8+ {[%clk 0:01:30]}  Nxe8 {[%clk 0:00:17]} 29. Qc6 {[%clk 0:01:31]}  Qxc6 {[%clk 0:00:17]} 30. dxc6 {[%clk 0:01:32]}  b4 {[%clk 0:00:17]} 31. Kf1 {[%clk 0:01:30]}  Kf8 {[%clk 0:00:18]} 32. Ke2 {[%clk 0:01:31]}  Ke7 {[%clk 0:00:18]} 33. Kd3 {[%clk 0:01:32]}  Nd6 {[%clk 0:00:19]} 34. Kd4 {[%clk 0:01:32]}  Nb5+ {[%clk 0:00:12]} 35. Kc5 {[%clk 0:01:32]}  Nc3 {[%clk 0:00:12]} 36. Kxb4 {[%clk 0:01:26]}  Nxa2+ {[%clk 0:00:12]} 37. Kc5 {[%clk 0:01:26]}  Nc3 {[%clk 0:00:12]} 38. b4 {[%clk 0:01:24]}  Na4+ {[%clk 0:00:12]} 39. Kb5 {[%clk 0:01:24]}  Nc3+ {[%clk 0:00:12]} 40. Ka6 {[%clk 0:01:24]}  Kd6 {[%clk 0:00:11]} 41. b5 {[%clk 0:01:25]}  Na4 {[%clk 0:00:07]} 42. b6 {[%clk 0:01:24]}  Nc5+ {[%clk 0:00:07]} 43. Ka7 {[%clk 0:01:25]}  f5 {[%clk 0:00:06]} 44. c7 {[%clk 0:01:24]}  Kd7 {[%clk 0:00:05]} 45. Bb7 {[%clk 0:01:24]} 1-0


[Site "https://www.chess.com"]

[Event "Titled Tuesday Blitz March 08 Early 2022"]
[White "Zanette, Edgard Vinicius"]
[Black "Nguyen Hong Nhung"]
[WhiteFideId "2109263"]
[BlackFideId "12412201"]
[WhiteElo "2182"]
[BlackElo "1661"]
[Result "1/2-1/2"]
[Round "09"]
[TimeControl "180+1"]
[Date "2022.03.09"]
[WhiteClock "0:00:09"]
[BlackClock "0:00:17"]

1. e4 {[%clk 0:02:59]}  c5 {[%clk 0:02:59]} 2. Nc3 {[%clk 0:02:57]}  e6 {[%clk 0:02:59]} 3. g3 {[%clk 0:02:57]}  Nc6 {[%clk 0:02:58]} 4. Bg2 {[%clk 0:02:57]}  Nge7 {[%clk 0:02:56]} 5. d3 {[%clk 0:02:56]}  g6 {[%clk 0:02:53]} 6. Be3 {[%clk 0:02:56]}  d6 {[%clk 0:02:53]} 7. Nge2 {[%clk 0:02:56]}  Bg7 {[%clk 0:02:53]} 8. d4 {[%clk 0:02:57]}  cxd4 {[%clk 0:02:52]} 9. Nxd4 {[%clk 0:02:56]}  O-O {[%clk 0:02:51]} 10. O-O {[%clk 0:02:54]}  a6 {[%clk 0:02:51]} 11. Nxc6 {[%clk 0:02:41]}  bxc6 {[%clk 0:02:47]} 12. Qd2 {[%clk 0:02:39]}  d5 {[%clk 0:02:45]} 13. Bc5 {[%clk 0:02:31]}  Re8 {[%clk 0:02:39]} 14. Rad1 {[%clk 0:02:21]}  Rb8 {[%clk 0:02:27]} 15. Na4 {[%clk 0:02:12]}  a5 {[%clk 0:02:12]} 16. Rfe1 {[%clk 0:02:01]}  Ba6 {[%clk 0:02:09]} 17. b3 {[%clk 0:01:42]}  Nc8 {[%clk 0:02:00]} 18. c4 {[%clk 0:01:33]}  Bb7 {[%clk 0:01:41]} 19. exd5 {[%clk 0:01:24]}  exd5 {[%clk 0:01:40]} 20. Rxe8+ {[%clk 0:01:23]}  Qxe8 {[%clk 0:01:41]} 21. cxd5 {[%clk 0:01:23]}  cxd5 {[%clk 0:01:42]} 22. Bxd5 {[%clk 0:01:21]}  Bxd5 {[%clk 0:01:41]} 23. Qxd5 {[%clk 0:01:21]}  Ne7 {[%clk 0:01:37]} 24. Qe4 {[%clk 0:01:13]}  Nc6 {[%clk 0:01:31]} 25. Qxe8+ {[%clk 0:01:07]}  Rxe8 {[%clk 0:01:31]} 26. Kf1 {[%clk 0:01:06]}  h5 {[%clk 0:01:28]} 27. Nb6 {[%clk 0:01:01]}  Re5 {[%clk 0:01:20]} 28. Be3 {[%clk 0:00:53]}  Re6 {[%clk 0:01:13]} 29. Nc4 {[%clk 0:00:51]}  Bc3 {[%clk 0:01:11]} 30. Rd7 {[%clk 0:00:46]}  Nb4 {[%clk 0:01:07]} 31. a4 {[%clk 0:00:40]}  Nc2 {[%clk 0:00:58]} 32. Bb6 {[%clk 0:00:33]}  Re1+ {[%clk 0:00:44]} 33. Kg2 {[%clk 0:00:33]}  Rb1 {[%clk 0:00:38]} 34. Nxa5 {[%clk 0:00:27]}  Ne1+ {[%clk 0:00:32]} 35. Kh3 {[%clk 0:00:24]}  Rb2 {[%clk 0:00:27]} 36. Nc4 {[%clk 0:00:22]}  Rxb3 {[%clk 0:00:26]} 37. Be3 {[%clk 0:00:19]}  Nf3 {[%clk 0:00:23]} 38. Kg2 {[%clk 0:00:19]}  Ne1+ {[%clk 0:00:21]} 39. Kf1 {[%clk 0:00:18]}  Nc2 {[%clk 0:00:21]} 40. Rd3 {[%clk 0:00:15]}  Rb1+ {[%clk 0:00:20]} 41. Ke2 {[%clk 0:00:15]}  Bf6 {[%clk 0:00:20]} 42. Rd2 {[%clk 0:00:13]}  Nb4 {[%clk 0:00:19]} 43. a5 {[%clk 0:00:10]}  Ra1 {[%clk 0:00:19]} 44. Bd4 {[%clk 0:00:09]}  Bxd4 {[%clk 0:00:18]} 45. Rxd4 {[%clk 0:00:10]}  Ra2+ {[%clk 0:00:18]} 46. Rd2 {[%clk 0:00:10]}  Ra4 {[%clk 0:00:18]} 47. Rb2 {[%clk 0:00:09]}  Nd5 {[%clk 0:00:18]} 48. Rc2 {[%clk 0:00:08]}  Nb4 {[%clk 0:00:16]} 49. Rc3 {[%clk 0:00:07]}  Nd5 {[%clk 0:00:16]} 50. Rc1 {[%clk 0:00:05]}  Ra2+ {[%clk 0:00:15]} 51. Kf1 {[%clk 0:00:05]}  Nb4 {[%clk 0:00:15]} 52. Rb1 {[%clk 0:00:04]}  Nc6 {[%clk 0:00:15]} 53. Rb5 {[%clk 0:00:04]}  Ra4 {[%clk 0:00:14]} 54. Rc5 {[%clk 0:00:04]}  Nd4 {[%clk 0:00:14]} 55. Kg2 {[%clk 0:00:05]}  Kg7 {[%clk 0:00:14]} 56. Nd6 {[%clk 0:00:05]}  Nb3 {[%clk 0:00:13]} 57. Rc7 {[%clk 0:00:05]}  Rxa5 {[%clk 0:00:13]} 58. Rxf7+ {[%clk 0:00:05]}  Kh6 {[%clk 0:00:14]} 59. Ne4 {[%clk 0:00:04]}  Nd4 {[%clk 0:00:13]} 60. h4 {[%clk 0:00:05]}  Ne6 {[%clk 0:00:12]} 61. Ng5 {[%clk 0:00:05]}  Nxg5 {[%clk 0:00:12]} 62. hxg5+ {[%clk 0:00:05]}  Rxg5 {[%clk 0:00:13]} 63. Rf4 {[%clk 0:00:06]}  Re5 {[%clk 0:00:12]} 64. Rf3 {[%clk 0:00:06]}  Kg5 {[%clk 0:00:13]} 65. Rf4 {[%clk 0:00:06]}  Re6 {[%clk 0:00:13]} 66. Rf8 {[%clk 0:00:07]}  Rf6 {[%clk 0:00:13]} 67. f4+ {[%clk 0:00:07]}  Kf5 {[%clk 0:00:13]} 68. Rxf6+ {[%clk 0:00:07]}  Kxf6 {[%clk 0:00:14]} 69. Kf3 {[%clk 0:00:08]}  Kf5 {[%clk 0:00:15]} 70. Kf2 {[%clk 0:00:08]}  Kg4 {[%clk 0:00:15]} 71. Kg2 {[%clk 0:00:09]}  h4 {[%clk 0:00:16]} 72. gxh4 {[%clk 0:00:09]}  Kxh4 {[%clk 0:00:16]} 73. Kf3 {[%clk 0:00:09]}  Kh5 {[%clk 0:00:16]} 74. Ke4 {[%clk 0:00:08]}  Kg4 {[%clk 0:00:16]} 75. Ke5 {[%clk 0:00:08]}  Kf3 {[%clk 0:00:16]} 76. f5 {[%clk 0:00:08]}  gxf5 {[%clk 0:00:17]} 77. Kxf5 {[%clk 0:00:09]} 1/2-1/2


[Site "https://www.chess.com"]

[Event "Titled Tuesday Blitz March 08 Early 2022"]
[White "Zhigalko, Sergei"]
[Black "Bluebaum, Matthias"]
[WhiteFideId "13502956"]
[BlackFideId "24651516"]
[WhiteElo "2662"]
[BlackElo "2550"]
[Result "1-0"]
[Round "09"]
[TimeControl "180+1"]
[Date "2022.03.08"]
[WhiteClock "0:00:04"]
[BlackClock "0:00:15"]

1. e4 {[%clk 0:03:00]}  c6 {[%clk 0:02:55]} 2. d4 {[%clk 0:03:01]}  d5 {[%clk 0:02:56]} 3. e5 {[%clk 0:03:02]}  Bf5 {[%clk 0:02:56]} 4. Nf3 {[%clk 0:03:02]}  e6 {[%clk 0:02:57]} 5. Be2 {[%clk 0:03:03]}  c5 {[%clk 0:02:57]} 6. Be3 {[%clk 0:03:01]}  Qb6 {[%clk 0:02:58]} 7. Nc3 {[%clk 0:03:01]}  Nc6 {[%clk 0:02:58]} 8. dxc5 {[%clk 0:03:02]}  Bxc5 {[%clk 0:02:53]} 9. Bxc5 {[%clk 0:03:03]}  Qxc5 {[%clk 0:02:54]} 10. Nb5 {[%clk 0:03:03]}  Kf8 {[%clk 0:02:41]} 11. Nbd4 {[%clk 0:02:59]}  Be4 {[%clk 0:02:38]} 12. O-O {[%clk 0:02:59]}  Nge7 {[%clk 0:02:37]} 13. Re1 {[%clk 0:02:52]}  Rc8 {[%clk 0:02:24]} 14. c3 {[%clk 0:02:52]}  Ng6 {[%clk 0:02:21]} 15. Bd3 {[%clk 0:02:49]}  Bxd3 {[%clk 0:01:55]} 16. Qxd3 {[%clk 0:02:48]}  Ke7 {[%clk 0:01:56]} 17. Rad1 {[%clk 0:02:24]}  Rhd8 {[%clk 0:01:50]} 18. h4 {[%clk 0:02:17]}  h6 {[%clk 0:01:42]} 19. h5 {[%clk 0:01:47]}  Nf8 {[%clk 0:01:42]} 20. Nxc6+ {[%clk 0:01:25]}  bxc6 {[%clk 0:01:42]} 21. Nd4 {[%clk 0:01:26]}  Qb6 {[%clk 0:01:42]} 22. Qg3 {[%clk 0:01:25]}  c5 {[%clk 0:01:28]} 23. Nf3 {[%clk 0:01:00]}  g5 {[%clk 0:01:28]} 24. Nh2 {[%clk 0:00:47]}  Qxb2 {[%clk 0:01:14]} 25. Ng4 {[%clk 0:00:47]}  Rb8 {[%clk 0:01:06]} 26. Nxh6 {[%clk 0:00:45]}  Nh7 {[%clk 0:01:07]} 27. Qd3 {[%clk 0:00:31]}  Rh8 {[%clk 0:01:03]} 28. c4 {[%clk 0:00:20]}  d4 {[%clk 0:00:57]} 29. Nxf7 {[%clk 0:00:14]}  Kxf7 {[%clk 0:00:41]} 30. Qg6+ {[%clk 0:00:12]}  Kf8 {[%clk 0:00:39]} 31. Rb1 {[%clk 0:00:10]}  g4 {[%clk 0:00:21]} 32. Rxb2 {[%clk 0:00:09]}  Rxb2 {[%clk 0:00:22]} 33. Qxe6 {[%clk 0:00:07]}  Rg8 {[%clk 0:00:23]} 34. Re4 {[%clk 0:00:02]}  Ng5 {[%clk 0:00:11]} 35. Rf4+ {[%clk 0:00:02]}  Kg7 {[%clk 0:00:11]} 36. Qg6+ {[%clk 0:00:02]}  Kh8 {[%clk 0:00:11]} 37. Qh6+ {[%clk 0:00:02]}  Nh7 {[%clk 0:00:12]} 38. Rf7 {[%clk 0:00:03]}  Rb1+ {[%clk 0:00:12]} 39. Kh2 {[%clk 0:00:03]}  g3+ {[%clk 0:00:13]} 40. fxg3 {[%clk 0:00:03]}  Rh1+ {[%clk 0:00:14]} 41. Kxh1 {[%clk 0:00:04]}  Rg7 {[%clk 0:00:15]} 42. Qxg7# {[%clk 0:00:04]} 1-0


[Site "https://www.chess.com"]

[Event "Titled Tuesday Blitz March 08 Early 2022"]
[White "Abarca Gonzalez, Nicolas"]
[Black "Bortnyk, Olexandr"]
[WhiteFideId "3409422"]
[BlackFideId "14120828"]
[WhiteElo "2504"]
[BlackElo "2723"]
[Result "0-1"]
[Round "10"]
[TimeControl "180+1"]
[Date "2022.03.08"]
[WhiteClock "0:00:07"]
[BlackClock "0:00:05"]

1. e4 {[%clk 0:03:00]}  Nf6 {[%clk 0:02:57]} 2. Nc3 {[%clk 0:03:00]}  d5 {[%clk 0:02:55]} 3. exd5 {[%clk 0:02:59]}  Nxd5 {[%clk 0:02:55]} 4. Nf3 {[%clk 0:02:59]}  Nxc3 {[%clk 0:02:54]} 5. bxc3 {[%clk 0:03:00]}  g6 {[%clk 0:02:54]} 6. d4 {[%clk 0:02:53]}  Bg7 {[%clk 0:02:54]} 7. g3 {[%clk 0:02:40]}  O-O {[%clk 0:02:53]} 8. Bg2 {[%clk 0:02:41]}  c5 {[%clk 0:02:54]} 9. O-O {[%clk 0:02:40]}  Qa5 {[%clk 0:02:54]} 10. Bd2 {[%clk 0:02:24]}  Rd8 {[%clk 0:02:51]} 11. Qe1 {[%clk 0:02:21]}  e6 {[%clk 0:01:25]} 12. Ne5 {[%clk 0:02:13]}  Nd7 {[%clk 0:01:19]} 13. Nc4 {[%clk 0:02:11]}  Qa6 {[%clk 0:01:14]} 14. Ne5 {[%clk 0:01:58]}  Nxe5 {[%clk 0:00:55]} 15. dxe5 {[%clk 0:01:59]}  h6 {[%clk 0:00:55]} 16. Qe3 {[%clk 0:01:39]}  Bd7 {[%clk 0:00:51]} 17. Rfb1 {[%clk 0:01:27]}  Bc6 {[%clk 0:00:48]} 18. Be1 {[%clk 0:01:23]}  Bxg2 {[%clk 0:00:39]} 19. Kxg2 {[%clk 0:01:24]}  Qc6+ {[%clk 0:00:36]} 20. Qf3 {[%clk 0:01:24]}  Rd5 {[%clk 0:00:22]} 21. c4 {[%clk 0:01:01]}  Rxe5 {[%clk 0:00:22]} 22. Qxc6 {[%clk 0:01:02]}  bxc6 {[%clk 0:00:23]} 23. Rb7 {[%clk 0:01:02]}  Re2 {[%clk 0:00:22]} 24. Rd1 {[%clk 0:01:02]}  Rxc2 {[%clk 0:00:20]} 25. Rdd7 {[%clk 0:01:02]}  Rf8 {[%clk 0:00:21]} 26. Rxa7 {[%clk 0:01:02]}  Bd4 {[%clk 0:00:20]} 27. Rdc7 {[%clk 0:00:56]}  Rxc4 {[%clk 0:00:18]} 28. Rxc6 {[%clk 0:00:56]}  Rc1 {[%clk 0:00:16]} 29. Bd2 {[%clk 0:00:54]}  Rc2 {[%clk 0:00:16]} 30. Bxh6 {[%clk 0:00:54]}  Rxf2+ {[%clk 0:00:16]} 31. Kh3 {[%clk 0:00:54]}  Rb8 {[%clk 0:00:16]} 32. Rcc7 {[%clk 0:00:46]}  Rbb2 {[%clk 0:00:14]} 33. Kg4 {[%clk 0:00:44]}  Rxh2 {[%clk 0:00:07]} 34. Rc8+ {[%clk 0:00:27]}  Kh7 {[%clk 0:00:06]} 35. Bf4 {[%clk 0:00:27]}  Kg7 {[%clk 0:00:02]} 36. Rcc7 {[%clk 0:00:26]}  Kg8 {[%clk 0:00:02]} 37. Rc8+ {[%clk 0:00:22]}  Kg7 {[%clk 0:00:02]} 38. Rcc7 {[%clk 0:00:22]}  c4 {[%clk 0:00:03]} 39. Rxf7+ {[%clk 0:00:22]}  Kg8 {[%clk 0:00:04]} 40. Rac7 {[%clk 0:00:15]}  Rxa2 {[%clk 0:00:04]} 41. Rfd7 {[%clk 0:00:08]}  Ra8 {[%clk 0:00:03]} 42. Rxd4 {[%clk 0:00:08]}  c3 {[%clk 0:00:03]} 43. Rxc3 {[%clk 0:00:07]}  Rh5 {[%clk 0:00:04]} 44. Rd7 {[%clk 0:00:07]}  e5 {[%clk 0:00:04]} 45. Bg5 {[%clk 0:00:07]}  Ra4+ {[%clk 0:00:04]} 46. Bf4 {[%clk 0:00:07]}  Ra8 {[%clk 0:00:04]} 47. Be3 {[%clk 0:00:08]}  Rf5 {[%clk 0:00:04]} 48. Rcc7 {[%clk 0:00:06]}  Ra4+ {[%clk 0:00:04]} 49. Kh3 {[%clk 0:00:07]}  Rh5+ {[%clk 0:00:04]} 50. Kg2 {[%clk 0:00:07]}  Ra2+ {[%clk 0:00:05]} 51. Kf3 {[%clk 0:00:07]}  Rf5+ {[%clk 0:00:05]} 52. Ke4 {[%clk 0:00:07]}  Ra4+ {[%clk 0:00:05]} 53. Kd5 {[%clk 0:00:08]}  e4+ {[%clk 0:00:04]} 54. Ke6 {[%clk 0:00:05]}  Ra6+ {[%clk 0:00:04]} 55. Rd6 {[%clk 0:00:05]}  Rxd6+ {[%clk 0:00:04]} 56. Kxd6 {[%clk 0:00:06]}  Rf3 {[%clk 0:00:05]} 57. Bf4 {[%clk 0:00:07]}  g5 {[%clk 0:00:05]} 0-1


[Site "https://www.chess.com"]

[Event "Titled Tuesday Blitz March 08 Early 2022"]
[White "Artemenko, Oleg"]
[Black "Jaskolka, Tomasz"]
[WhiteFideId "14201798"]
[BlackFideId "1170791"]
[WhiteElo "2287"]
[BlackElo "2073"]
[Result "0-1"]
[Round "10"]
[TimeControl "180+1"]
[Date "2022.03.09"]
[WhiteClock "0:00:48"]
[BlackClock "0:00:17"]

1. d4 {[%clk 0:03:00]}  Nf6 {[%clk 0:02:57]} 2. Nc3 {[%clk 0:03:00]}  d5 {[%clk 0:02:56]} 3. Bf4 {[%clk 0:03:00]}  c6 {[%clk 0:02:56]} 4. f3 {[%clk 0:02:59]}  Bf5 {[%clk 0:02:52]} 5. g4 {[%clk 0:02:59]}  Bg6 {[%clk 0:02:52]} 6. h4 {[%clk 0:02:59]}  h5 {[%clk 0:02:53]} 7. g5 {[%clk 0:02:59]}  Nfd7 {[%clk 0:02:51]} 8. e3 {[%clk 0:03:00]}  e6 {[%clk 0:02:46]} 9. Bd3 {[%clk 0:02:59]}  Bxd3 {[%clk 0:02:45]} 10. Qxd3 {[%clk 0:03:00]}  g6 {[%clk 0:02:46]} 11. Nge2 {[%clk 0:03:01]}  Bg7 {[%clk 0:02:43]} 12. O-O-O {[%clk 0:02:59]}  a6 {[%clk 0:02:42]} 13. Bd6 {[%clk 0:02:56]}  Nb6 {[%clk 0:02:25]} 14. Be5 {[%clk 0:02:54]}  Bxe5 {[%clk 0:02:24]} 15. dxe5 {[%clk 0:02:54]}  N8d7 {[%clk 0:02:24]} 16. b3 {[%clk 0:02:39]}  Qe7 {[%clk 0:02:14]} 17. f4 {[%clk 0:02:32]}  a5 {[%clk 0:02:13]} 18. a4 {[%clk 0:02:30]}  Qa3+ {[%clk 0:01:59]} 19. Kb1 {[%clk 0:02:29]}  Ra6 {[%clk 0:01:57]} 20. Nd4 {[%clk 0:02:11]}  Nc5 {[%clk 0:01:29]} 21. Qd2 {[%clk 0:02:05]}  O-O {[%clk 0:01:05]} 22. Qc1 {[%clk 0:01:58]}  Qb4 {[%clk 0:00:21]} 23. Na2 {[%clk 0:01:53]}  Nbxa4 {[%clk 0:00:22]} 24. Nxb4 {[%clk 0:01:36]}  Nc3+ {[%clk 0:00:22]} 25. Kb2 {[%clk 0:01:36]}  axb4 {[%clk 0:00:22]} 26. Qa1 {[%clk 0:01:36]}  Nxd1+ {[%clk 0:00:15]} 27. Qxd1 {[%clk 0:01:35]}  Rfa8 {[%clk 0:00:16]} 28. Qb1 {[%clk 0:01:31]}  Ne4 {[%clk 0:00:16]} 29. Qa1 {[%clk 0:01:14]}  Rxa1 {[%clk 0:00:15]} 30. Rxa1 {[%clk 0:01:15]}  Rxa1 {[%clk 0:00:15]} 31. Kxa1 {[%clk 0:01:16]}  Nc3 {[%clk 0:00:10]} 32. Nf3 {[%clk 0:00:48]}  Nd1 {[%clk 0:00:10]} 33. Ne1 {[%clk 0:00:48]}  Nxe3 {[%clk 0:00:10]} 34. Kb2 {[%clk 0:00:49]}  c5 {[%clk 0:00:10]} 35. Kc1 {[%clk 0:00:49]}  b6 {[%clk 0:00:10]} 36. Kd2 {[%clk 0:00:50]}  Nf5 {[%clk 0:00:11]} 37. Ng2 {[%clk 0:00:50]}  Kf8 {[%clk 0:00:10]} 38. Kd3 {[%clk 0:00:50]}  Ke8 {[%clk 0:00:11]} 39. c4 {[%clk 0:00:49]}  bxc3 {[%clk 0:00:11]} 40. Kxc3 {[%clk 0:00:49]}  Kd7 {[%clk 0:00:11]} 41. b4 {[%clk 0:00:49]}  Kc6 {[%clk 0:00:11]} 42. bxc5 {[%clk 0:00:49]}  bxc5 {[%clk 0:00:12]} 43. Kd3 {[%clk 0:00:49]}  c4+ {[%clk 0:00:12]} 44. Kc3 {[%clk 0:00:49]}  Kc5 {[%clk 0:00:13]} 45. Kc2 {[%clk 0:00:48]}  d4 {[%clk 0:00:13]} 46. Kd2 {[%clk 0:00:49]}  Kd5 {[%clk 0:00:13]} 47. Ke1 {[%clk 0:00:48]}  Ke4 {[%clk 0:00:14]} 48. Ke2 {[%clk 0:00:48]}  d3+ {[%clk 0:00:14]} 49. Kd2 {[%clk 0:00:49]}  Kd4 {[%clk 0:00:14]} 50. Ne1 {[%clk 0:00:50]}  c3+ {[%clk 0:00:15]} 51. Kd1 {[%clk 0:00:50]}  Ne3+ {[%clk 0:00:14]} 52. Kc1 {[%clk 0:00:48]}  d2+ {[%clk 0:00:15]} 53. Kb1 {[%clk 0:00:48]}  dxe1=Q+ {[%clk 0:00:15]} 54. Ka2 {[%clk 0:00:49]}  Qd2+ {[%clk 0:00:16]} 55. Kb3 {[%clk 0:00:48]}  Qb2+ {[%clk 0:00:16]} 56. Ka4 {[%clk 0:00:48]}  Kc4 {[%clk 0:00:16]} 57. Ka5 {[%clk 0:00:48]}  Qb5# {[%clk 0:00:17]} 0-1


[Site "https://www.chess.com"]